Cogmind - Beta 14 @@@ ROGUE MODE // 2024.11.01 @ 01:22:37 Player: BigChungusGaming Result: Destroyed by B-48 Gladiator with Mace Performance ------------- Evolutions (1) 500 Regions Visited (5) 1000 Robots Destroyed (26) 130 Value Destroyed (814) 814 Prototype IDs (0) 0 Alien Tech Used (0) 0 Bonus (619) 619 TOTAL SCORE: 3063 Bonus ------- Follower Combat Kills 207 Met Imprinter 300 Was Imprinted 300 Friendly Fire -188 Cogmind --------- Core Integrity 0/400 Matter 216/300 Energy 100/100 System Corruption 8% Temperature Hot (226) Movement Treading (165) Location -6/Proximity Caves Parts ------- > --- POWER (1) -------- Fusion Compressor > --- PROPULSION (2) --- Armored Treads Medium Treads > --- UTILITY (3) ------ Weapon Cycler > --- WEAPON (3) ------- Beamcaster > --- INVENTORY (5) ---- Light Ion Engine Light Ion Engine Makeshift ECM Suite Medium Laser Assault Rifle Peak State ------------ > --- POWER ------------ Fusion Compressor > --- PROPULSION ------- Medium Treads Medium Treads > --- UTILITY ---------- Advanced Heat Sink Small Storage Unit Weapon Cycler > --- WEAPON ----------- Beamcaster Beamcaster Slug Cannon > --- INVENTORY -------- Light Ion Engine Light Ion Engine Transmission Jammer Makeshift ECM Suite Medium Laser Assault Rifle [Rating: 38] Favorites ----------- Power Reinforced Ion Engine Engine Reinforced Ion Engine Power Core Fusion Compressor Propulsion Aluminum Leg Treads Light Treads Leg Aluminum Leg Utility Small Storage Unit Device Heat Sink Storage Small Storage Unit Protection Hardened Light Armor Plating Weapon Heavy Assault Rifle Energy Gun Beamcaster Ballistic Gun Heavy Assault Rifle Ballistic Cannon Slug Cannon Launcher Mini Grenade Launcher Build | -11 -10 -9 -9 -7 -6 ------- Run | Yrd Mat Mat Min Zio Pro Slots Evolved 2 | . . 2 . . . Power . | . . . . . . Propulsion . | . . . . . . Utility 1 | . . 1 . . . Weapon 1 | . . 1 . . . Parts Attached 40 | 8 4 11 . 5 12 Power 5 | 2 . 1 . . 2 Engine 4 | 2 . 1 . . 1 Core 1 | . . . . . 1 Reactor . | . . . . . . Propulsion 10 | 2 . 2 . 2 4 Treads 6 | 2 . . . . 4 Leg 4 | . . 2 . 2 . Wheel . | . . . . . . Hover . | . . . . . . Flight . | . . . . . . Utility 10 | 1 1 4 . . 4 Device 6 | . 1 1 . . 4 Storage 1 | 1 . . . . . Processor . | . . . . . . Hackware . | . . . . . . Protection 3 | . . 3 . . . Artifact . | . . . . . . Weapon 15 | 3 3 4 . 3 2 Energy Gun 5 | 1 . 1 . 1 2 Energy Cannon . | . . . . . . Ballistic Gun 8 | 2 3 2 . 1 . Ballistic Cannon 1 | . . . . 1 . Launcher 1 | . . 1 . . . Special Weapon . | . . . . . . Impact Weapon . | . . . . . . Slashing Weapon . | . . . . . . Piercing Weapon . | . . . . . . Special Melee Weapon . | . . . . . . Unidentified Prototypes . | . . . . . . Parts Lost 7 | . . 2 . . 5 Power . | . . . . . . Propulsion . | . . . . . . Utility 4 | . . 1 . . 3 Weapon 3 | . . 1 . . 2 Highest Loss Streak 4 | . . 1 . . 4 To Critical Strikes . | . . . . . . Average Slot Usage (%) 98 | . 98 95 100 99 98 Engine 10 | . 14 11 11 11 7 Treads 5 | . 28 9 . . 6 Leg 17 | . . 12 22 22 14 Device 11 | . 12 10 11 11 14 Storage 11 | . 14 11 11 11 11 Protection 8 | . . 8 11 11 7 Energy Gun 6 | . . 2 . 6 14 Ballistic Gun 16 | . 28 26 22 14 7 Ballistic Cannon 6 | . . . . 7 10 Launcher 3 | . . 2 11 4 . Peak Build Rating 38 | 6 10 14 14 27 38 Average Rating 20 | 4 7 12 14 21 32 On Entrance 11 | . 6 10 14 14 27 Naked Turns . | . . . . . . Heaviest Build 37 | 13 17 32 28 37 37 Greatest Support 56 | 40 40 40 20 37 56 Greatest Overweight (x) 1 | . . 1 1 1 1 Average Overweight (x) . | . . . 1 . . Largest Inventory Capacity 8 | 8 8 8 8 8 8 Average Capacity 7 | 6 8 8 8 8 7 Most Carried 8 | 6 8 8 7 8 8 Average Carried 7 | 3 7 7 6 7 7 Final Capacity 8 | 8 8 8 8 8 5 Final Carried 8 | 6 8 8 6 8 5 Class Distribution -------------------- 35% | Tank 34% | Derelict-Tank 10% | Mutant 9% | Derelict-Mutant 4% | Scavenger-Gunner 3% | Gunner Dominant Class ---------------- Mutant | -10/Materials Tank | -9/Materials Tank | -9/Mines Derelict-Tank | -7/Zion Derelict-Mutant | -6/Proximity Caves Resources | -11 -10 -9 -9 -7 -6 ----------- Run | Yrd Mat Mat Min Zio Pro Matter Collected 1249 | 280 50 500 . 50 369 Remotely . | . . . . . . Salvage Created 965 | . 50 712 . . 203 Parts 67 | . 3 49 . . 15 Haulers Intercepted . | . . . . . . Recyclers Shooed . | . . . . . . Parts Field Recycled . | . . . . . . Retrieved Matter . | . . . . . . Parts Self-Destructed 16 | . . . . 4 12 Prevented 1 | . . . . . 1 Kills | -11 -10 -9 -9 -7 -6 ------- Run | Yrd Mat Mat Min Zio Pro Combat Hostiles Destroyed 23 | . 3 17 . . 3 Guns 21 | . 3 17 . . 1 Cannons 2 | . . . . . 2 Classes Destroyed 9 | . 1 6 . . 2 Worker 1 | . . 1 . . . Builder 1 | . . 1 . . . Swarmer 6 | . 3 3 . . . Grunt 7 | . . 6 . . 1 Brawler 1 | . . 1 . . . Duelist 2 | . . 2 . . . Sentry 6 | . . 5 . . 1 Behemoth 1 | . . . . . 1 Mutant 1 | . . . . . 1 Best Kill Streak 5 | . 3 5 . . 1 Combat Bots Only 5 | . 3 5 . . 1 Max Kills in Single Turn 2 | . 1 2 . . 1 Gunslinging . | . . . . . . Exploded . | . . . . . . Melee . | . . . . . . Uniques/NPCs Destroyed . | . . . . . . Combat | -11 -10 -9 -9 -7 -6 -------- Run | Yrd Mat Mat Min Zio Pro Hostile Shots Fired 222 | . 20 83 . . 119 Missed 70 | . 3 22 . . 45 Damage Taken 2241 | . 127 836 . . 1278 Core 458 | . 40 83 . . 335 Absorbed by Shields . | . . . . . . Regen/Repaired (Parts) 6 | . . . . 6 . Core Remaining (%) 92 | 100 84 . . . . Volleys Fired 97 | . 7 47 . . 43 Largest 3 | . 2 3 . . 3 Hottest 198 | . 46 91 . . 198 Shots Fired 214 | . 14 129 . . 71 Gun 190 | . 14 126 . . 50 Cannon 21 | . . . . . 21 Launcher 3 | . . 3 . . . Special . | . . . . . . Kinetic 154 | . 14 114 . . 26 Thermal 45 | . . . . . 45 Explosive 3 | . . 3 . . . Electromagnetic 12 | . . 12 . . . Robot Hit Streak 8 | . 4 8 . . 6 Robot Miss Streak 5 | . 3 5 . . 3 Penetration Max . | . . . . . . Secondary Targets 5 | . . 5 . . . Max Gunslinging Chain 1 | . . 1 . . . Shots Hit Robots 127 | . 6 78 . . 43 Core Hits 49 | . 3 32 . . 14 Critical Kills . | . . . . . . Critical Parts Destroyed 3 | . . 1 . . 2 Critical Strikes 8 | . . 2 . . 6 Burn 4 | . . . . . 4 Destroy 3 | . . 1 . . 2 Corrupt 1 | . . 1 . . . Melee Attacks . | . . . . . . Impact . | . . . . . . Slashing . | . . . . . . Piercing . | . . . . . . Sneak Attacks . | . . . . . . Combat Hostiles . | . . . . . . Follow-up Attacks . | . . . . . . Damage Inflicted 2316 | 8 91 1164 . . 1053 Guns 1922 | . 91 1083 . . 748 Cannons 305 | . . . . . 305 Explosions 81 | . . 81 . . . Melee . | . . . . . . Ramming 8 | 8 . . . . . Kinetic 1415 | . 91 978 . . 346 Thermal 707 | . . . . . 707 Explosive 81 | . . 81 . . . Electromagnetic 105 | . . 105 . . . Impact . | . . . . . . Slashing . | . . . . . . Piercing . | . . . . . . Highest Corruption 8 | . 4 . . . 8 Average Corruption 4 | . 3 . . . 4 Corruption Purged . | . . . . . . Corruption Blocked . | . . . . . . Effects 1 | . 1 . . . . Energy Discharges 1 | . 1 . . . . Overload Shots . | . . . . . . Overflow Damage . | . . . . . . Projectiles . | . . . . . . Explosions . | . . . . . . Melee . | . . . . . . Knockbacks . | . . . . . . Impact . | . . . . . . Kinetic . | . . . . . . Secondary . | . . . . . . Self-Inflicted Damage 60 | . . 60 . . . Shots 2 | . . 2 . . . Rammed 1 | 1 . . . . . Targets Rammed 2 | 1 . 1 . . . Kicked 1 | . . 1 . . . Crushed . | . . . . . . Highest Temperature 564 | . . 146 . . 564 Average Temperature 124 | . . 42 . . 205 Received Heat Transfer 773 | . . 225 . . 548 Effects 18 | . . . . . 18 Shutdowns 3 | . . . . . 3 Energy Bleed 3 | . . . . . 3 Interference 7 | . . . . . 7 Short Circuit 1 | . . . . . 1 Damage (minor) 3 | . . . . . 3 Damage (major) 1 | . . . . . 1 Siege Activations . | . . . . . . Robots Corrupted . | . . . . . . Combat Hostiles . | . . . . . . Parts Fried 1 | . . 1 . . . Impact Corruptions . | . . . . . . Robots Melted . | . . . . . . Combat Hostiles . | . . . . . . Parts Melted 1 | . . . . . 1 Heat Transferred 1461 | . . . . . 1461 Parts Sabotaged . | . . . . . . Parts Stolen . | . . . . . . Parts Stripped . | . . . . . . Power Chain Reactions . | . . . . . . Alert | -11 -10 -9 -9 -7 -6 ------- Run | Yrd Mat Mat Min Zio Pro Peak Influence 364 | . 85 364 83 . . Initial 83 | . . . 83 . . Average 118 | . 38 183 83 . . Maximum Alert Level 1 | . . 1 . . . Low Security (%) 76 | 100 100 53 100 . . Level 1 23 | . . 46 . . . Level 2 . | . . . . . . Level 3 . | . . . . . . Level 4 . | . . . . . . Level 5 . | . . . . . . High Security . | . . . . . . Max Security . | . . . . . . Squads Dispatched 1 | . . 1 . . . Investigation 1 | . . 1 . . . Extermination . | . . . . . . Reinforcement . | . . . . . . Assault . | . . . . . . Garrison . | . . . . . . Intercept . | . . . . . . Searches Triggered . | . . . . . . Construction Impeded . | . . . . . . Haulers Reinforced . | . . . . . . Active Scanning Responses . | . . . . . . Cargo Convoy Interrupts . | . . . . . . Stealth | -11 -10 -9 -9 -7 -6 --------- Run | Yrd Mat Mat Min Zio Pro Distress Signals 2 | . . 2 . . . Communications Jammed . | . . . . . . Distress Signals . | . . . . . . Times Spotted 41 | . 4 26 . . 11 Peak Tracking Total 5 | . 4 5 . . 4 Tactical Retreats 3 | . . 2 . . 1 Traps | -11 -10 -9 -9 -7 -6 ------- Run | Yrd Mat Mat Min Zio Pro Traps Triggered 3 | . 2 1 . . . Indirectly . | . . . . . . Trap Hack Attempts . | . . . . . . Triggered . | . . . . . . Disarmed . | . . . . . . Reprogrammed . | . . . . . . Reused . | . . . . . . Traps Extracted . | . . . . . . Installed . | . . . . . . Triggered . | . . . . . . Machines | -11 -10 -9 -9 -7 -6 ---------- Run | Yrd Mat Mat Min Zio Pro Machines Disabled 1 | . . 1 . . . Max in Single Turn 1 | . . 1 . . . Machines Repaired . | . . . . . . Machines Dismantled . | . . . . . . Machines Sabotaged . | . . . . . . Overloaded Fab Kills . | . . . . . . Hacking | -11 -10 -9 -9 -7 -6 --------- Run | Yrd Mat Mat Min Zio Pro Machines Accessed 2 | . 2 . . . . Terminals 2 | . 2 . . . . Fabricators . | . . . . . . Repair Stations . | . . . . . . Recycling Units . | . . . . . . Scanalyzers . | . . . . . . Garrison Access . | . . . . . . Total Hacks 3 | . 3 . . . . Successful 1 | . 1 . . . . Failed 2 | . 2 . . . . Catastrophic . | . . . . . . Database Lockouts . | . . . . . . Manual 2 | . . . . 2 . Terminals 3 | . 3 . . . . Fabricators . | . . . . . . Repair Stations . | . . . . . . Recycling Units . | . . . . . . Scanalyzers . | . . . . . . Garrison Access . | . . . . . . Terminal Hacks 1 | . 1 . . . . Zone Layout 1 | . 1 . . . . Fabricator Hacks . | . . . . . . Repair Station Hacks . | . . . . . . Recycling Unit Hacks . | . . . . . . Scanalyzer . | . . . . . . Garrison Access Hacks . | . . . . . . Unauthorized Hacks . | . . . . . . Terminals . | . . . . . . Fabricators . | . . . . . . Repair Stations . | . . . . . . Recycling Units . | . . . . . . Scanalyzers . | . . . . . . Garrison Access . | . . . . . . Data Cores Recovered . | . . . . . . Used . | . . . . . . Hacking Detections . | . . . . . . Full Trace Events . | . . . . . . Feedback Events . | . . . . . . Feedback Blocked . | . . . . . . Robot Schematics Acquired 1 | . . . . 1 . Robots Built . | . . . . . . Authchips . | . . . . . . Time . | . . . . . . Total Robot Build Rating . | . . . . . . Part Schematics Acquired 4 | . . . . 4 . Parts Built . | . . . . . . Authchips . | . . . . . . Time . | . . . . . . Total Part Build Rating . | . . . . . . Parts Repaired . | . . . . . . Time . | . . . . . . Parts Recycled . | . . . . . . Recycled Matter . | . . . . . . Retrieved Matter . | . . . . . . Retrieved Components . | . . . . . . Parts Scanalyzed . | . . . . . . Part Schematics Acquired . | . . . . . . Parts Damaged . | . . . . . . Bothacking | -11 -10 -9 -9 -7 -6 ------------ Run | Yrd Mat Mat Min Zio Pro Used RIF Installer . | . . . . . . Robots Hacked . | . . . . . . Non-combat . | . . . . . . Combat . | . . . . . . Robot Hacks Applied . | . . . . . . Relay Couplers Released . | . . . . . . Fabnet Peak Effective % . | . . . . . . Robots Rewired . | . . . . . . Allies Hacked . | . . . . . . Hacks Repelled . | . . . . . . Allies | -11 -10 -9 -9 -7 -6 -------- Run | Yrd Mat Mat Min Zio Pro Total Allies 4 | . . . . 4 . Largest Group 4 | . . . . 4 4 Highest-Rated Group 152 | . . . . 152 152 Highest-Rated Ally 39 | . . . . 39 39 Total Orders . | . . . . . . Ally Attacks 38 | . . . . . 38 Total Damage 773 | . . . . . 773 Kills 5 | . . . . . 5 Allies Corrupted . | . . . . . . Allies Melted 1 | . . . . . 1 Intel | -11 -10 -9 -9 -7 -6 ------- Run | Yrd Mat Mat Min Zio Pro Robot Analysis Total . | . . . . . . Derelict Logs Recovered 1 | . . . . 1 . Drone Launches . | . . . . . . Drone Recoveries . | . . . . . . Exploration | -11 -10 -9 -9 -7 -6 ------------- Run | Yrd Mat Mat Min Zio Pro Turns Passed 5912 | 100 463 955 376 2761 1257 Spaces Moved 3252 | 56 270 446 198 1501 781 Core 7 | 7 . . . . . Treads 723 | 49 270 204 . . 200 Legs 2522 | . . 242 198 1501 581 Wheels . | . . . . . . Hover . | . . . . . . Flight . | . . . . . . Fastest Speed 50 | 50 160 160 190 135 135 Average Speed 170 | 146 160 176 190 182 143 Slowest Speed 240 | 160 160 190 190 195 240 Overloaded Moves . | . . . . . . Propulsion Burnouts . | . . . . . . Robots Hopped . | . . . . . . Cave-ins Triggered . | . . . . . . Exploration Rate (%) 42 | 4 34 34 35 92 57 Regions Visited 5 Branch Regions 3 Pre-discovered Areas 1 | . . . 1 . . Known Exits Taken . | . . . . . . Unknown Exits Taken 5 | 1 1 1 1 1 . Scrap Searched 7 | . . . . 5 2 Spaces Dug . | . . . . . . Terrain Destroyed 19 | . . 18 . . 1 Melee . | . . . . . . Projectile 1 | . . . . . 1 AOE 18 | . . 18 . . . Terrain Rammed . | . . . . . . Walls Destroyed . | . . . . . . Machines Disabled . | . . . . . . Actions | -11 -10 -9 -9 -7 -6 --------- Run | Yrd Mat Mat Min Zio Pro Total 3460 | 70 288 510 199 1532 861 Wait 31 | . 1 . . 16 14 Move 3248 | 56 269 445 197 1500 781 Hop . | . . . . . . Pick Up 14 | 6 3 1 . 4 . Fast Attach 23 | 5 1 6 . 3 8 Attach 4 | 1 . 1 . . 2 Detach . | . . . . . . Swap 13 | 2 3 4 . 2 2 Drop 28 | . 4 5 2 7 10 Fire 97 | . 7 47 . . 43 Melee . | . . . . . . Ram . | . . . . . . Kick 1 | . . 1 . . . Crush . | . . . . . . Escape Stasis . | . . . . . . Rewire 1 | . . . . . 1 Trap . | . . . . . . Miscellaneous . | . . . . . . Route ------- -11/Scrapyard -10/Materials -9/Materials (discovered 2 exits: [*Mat] / [*Min]) -9/Mines (discovered 2 exits: [*Mat] / *Zio) -7/Zion -6/Proximity Caves History --------- Turn | Location | Event 8 | -11/Scrapyard | Discovered new exit (range 16) 101 | -11/Scrapyard | Entered Materials 314 | -10/Materials | Build established: Mutant 459 | -10/Materials | Discovered new exit (range 7) 564 | -10/Materials | Entered another Materials area 564 | -9/Materials | Evolved 2 slots: Utility x1, Weapon x1 1092 | -9/Materials | Discovered new exit (range 3) 1093 | -9/Materials | Build established: Tank 1492 | -9/Materials | Discovered new exit (range 10) 1519 | -9/Materials | Entered Mines 1629 | -9/Mines | Discovered new exit (range 9) 1727 | -9/Mines | Learned location of Storage (-8) 1873 | -9/Mines | A Derelict revealed a hidden shortcut to a safe place 1895 | -9/Mines | Entered Zion 2093 | -7/Zion | Received a hallucinogenic algorithm 2437 | -7/Zion | Given A8's code to call for help 2528 | -7/Zion | Learned Factory terminal intel 3236 | -7/Zion | Build established: Derelict-Tank 3596 | -7/Zion | Given the Hacking Drone Bay 3695 | -7/Zion | Met Imprinter 3746 | -7/Zion | Imprinted 3748 | -7/Zion | Declared Zion's savior 4262 | -7/Zion | Discovered new exit (range 16) 4656 | -7/Zion | Entered Proximity Caves 4656 | -6/Proximity Caves | Accompanied by 4 allies 5061 | -6/Proximity Caves | Attracted the attention of an 0b10 checkpoint 5248 | -6/Proximity Caves | Build established: Derelict-Mutant 5464 | -6/Proximity Caves | Spotted B-75 Beast 5486 | -6/Proximity Caves | Allies destroyed B-75 Beast 5728 | -6/Proximity Caves | Spotted B-75 Beast 5729 | -6/Proximity Caves | Entered a huge 0b10 base via the front door 5729 | -6/Proximity Caves | Core integrity fell below 50% 5783 | -6/Proximity Caves | Core integrity fell below 20% 5797 | -6/Proximity Caves | Destroyed B-75 Beast 5913 | -6/Proximity Caves | Destroyed by B-48 Gladiator with Mace Last Messages --------------- R-10 Processor collects Rnf. Deuterium Engine. Acquired 3 matter. Acquired Arm. Treads. Acquired 12 matter. U-05 Engineer builds a Door. Acquired 84 matter. U-05 Engineer builds a Door. Acquired 5 matter. Acquired 51 matter. Acquired 3 matter. Acquired 4 matter. Slug penetrates Reinforced Barrier. Beamcaster destroyed. System corrupted by crushing effect (+3). B-48 Gladiator suffers critical hit (Destroy). Destroyed Lgt. Treads. Slug Cannon destroyed. Sml. Storage Unit destroyed. Adv. Heat Sink destroyed. System corrupted by crushing effect (+5). Map ----- +----------------------------------------------------+ | ?????????????????????????????????????????????????? | | ?????????????????????????????????????????????????? | | ?????????????????????????????????????????????????? | | ?????????????????????????????????????????????????? | | ?????????????????????????????????????????????????? | | ?????????????????????????????????????????????????? | | ?????????????????????????????????????????????????? | | ?????????????????????????????????????????????????? | | ?????????????????????????????????????????????????? | | ?????????????????????????????????????????????????? | | #??????????????????? ????????????????????????????? | | ???????????? ????????????????????????????? | | #??????????????????? ????????????????????????????? | | ???????????????????? ????????????????????????????? | | ???????????????????? ????????????????????????????? | | ???????????????????? ????????????????????????????? | | ???????????????????? ????????????????????????????? | | ?? ?????????????# #???????????????????????????? | | ?? ?????????????# #???????????????????????????? | | ??? ????????????# #???????????????????????????? | | ??? ???????????# #???????????????????????????? | | ???? ???????????# #???????????????????????????? | | ????# ???????????# #????????????????? ??????? | | ???## ???????????# #????????????? ????????? | | ??## ???????????# ########## """"??????????? | | ?## ???????????# b@ """"??????????? | | ?# ##?????????# % Y """"??????????? | | ??# ##????????# ##########M """???????????? | | ???# ##??###### #####?????? ?????????? | | ##?# % ##?# #??????? ???????? | | #### "### ##???????? ???????? | | #?#" % """# %^#????????? ???????? | | %%#?##" / % ##?????????? ## #???????? | | %##??## = % / % #???????????????????????? | | ###### / #########???????????????? | | ![" ??????????????? | | % =! | ??????????????? | | #### ###### #########???????????????? | | #### ####????# #???????????????????????? | | # % ###???????# #???????????????????????? | | %#?????????##### #####???????????????????????? | | ##?????????????# #???????????????????????????? | | %##??????????????####???????????????????????????? | | ##??????????????????????????????????????????????? | | #???????????????????????????????????????????????? | | ##??????????????????????????????????????????????? | | ##?????????????????????????????????????????????? | | ######????????????????????????????????????????? | | ## ##???????????????????????????????????????? | | ##??????????????????????????????????????? | +----------------------------------------------------+ Best States ------------- Heat Dissipation 47 Energy Generation 25 Energy Capacity 290 Matter Stores 300 Matter Capacity 300 Sight Range 16 Terrain Scan Density 10 Armor Coverage 225 Weapon Cycling 15 Evasion (%) 55 Recoil Reduction 2 Item Schematics ----------------- Hyp. Gauss Cannon | -7/Zion | Archive Gauss Rifle | -7/Zion | Archive Imp. Hacking Suite | -7/Zion | Archive Hvy. Ion Cannon | -7/Zion | Archive Robot Schematics ------------------ T-07 Excavator | -7/Zion | Archive Fabricated ------------ Nothing Alien Tech Used ----------------- None Achievements -------------- None Challenges ------------ None Game ------ Seed ProjectionCorruptionEdition Manual? 0 Play Time 00:34:17 Cumulative 10.1 hours Start 2024.11.01 @ 00:43:54 End 2024.11.01 @ 01:22:37 Sessions 1 Manual Loads 0 Difficulty Rogue Special Mode None Game No. 18 Rogue 18 Adventurer 0 Explorer 0 Win Type - Total 0 Types 0/0/0/0/0/0/0/0/0 Lore% 11 Gallery% 16 Achievement% 14 Wizard Run 0 Options --------- Layout 1 ASCII 0 Keyboard 0 Movement Arrows Keybinds 0 Fullscreen 1 Font 32/SmallcapsGlow Map View 50x35 Zoom Use 0% Tactical HUD 0 Map Filters NONE Filters NONE Steam 1 RUN: cb90c3f4-a15c-4f18-8949-e4d52e26801b